Cogmind - Beta 13 @@@ ROGUE MODE // 2024.04.17 @ 01:26:21 Player: AntinDisguise Result: Destroyed by S-10 Pest with Light Assault Rifle Performance ------------- Evolutions (1) 500 Regions Visited (3) 600 Robots Destroyed (7) 35 Value Destroyed (109) 109 Prototype IDs (3) 60 Alien Tech Used (0) 0 Bonus (0) 0 TOTAL SCORE: 1304 Bonus ------- None Cogmind --------- Core Integrity 0/400 Matter 300/300 Energy 91/100 System Corruption 0% Temperature Cool (0) Movement Core (350) Ox6 Location -9/Mines Parts ------- > --- POWER (2) -------- (None) > --- PROPULSION (2) --- (None) > --- UTILITY (3) ------ Large Storage Unit > --- WEAPON (2) ------- (None) > --- INVENTORY (15) --- Improved Ion Engine Light Treads Light Treads Improved Treads Hacking Suite Peak State ------------ > --- POWER ------------ Improved Ion Engine Improved Ion Engine > --- PROPULSION ------- Compact Wheel Compact Wheel > --- UTILITY ---------- Small Storage Unit ECM Suite High-powered Tractor Beam > --- WEAPON ----------- EM Pulse Gun Medium Laser > --- INVENTORY -------- Improved Ion Engine Light Treads Light Treads Improved Treads [Rating: 12] Favorites ----------- Power Improved Ion Engine Engine Improved Ion Engine Propulsion Compact Wheel Wheel Compact Wheel Utility ECM Suite Device ECM Suite Storage Small Storage Unit Weapon Medium Laser Energy Gun Medium Laser Build | -11 -10 -9 -9 ------- Run | Yrd Mat Mat Min Slots Evolved 2 | . . 2 . Power 1 | . . 1 . Propulsion . | . . . . Utility 1 | . . 1 . Weapon . | . . . . Parts Attached 11 | 6 1 4 . Power 3 | 1 . 2 . Engine 3 | 1 . 2 . Core . | . . . . Reactor . | . . . . Propulsion 2 | 2 . . . Treads . | . . . . Leg . | . . . . Wheel 2 | 2 . . . Hover . | . . . . Flight . | . . . . Utility 4 | 1 1 2 . Device 2 | . 1 1 . Storage 2 | 1 . 1 . Processor . | . . . . Hackware . | . . . . Protection . | . . . . Artifact . | . . . . Weapon 2 | 2 . . . Energy Gun 2 | 2 . . . Energy Cannon . | . . . . Ballistic Gun . | . . . . Ballistic Cannon . | . . . . Launcher . | . . . . Special Weapon . | . . . . Impact Weapon . | . . . . Slashing Weapon . | . . . . Piercing Weapon . | . . . . Special Melee Weapon . | . . . . Unidentified Prototypes . | . . . . Parts Lost 8 | . . . 8 Power 2 | . . . 2 Propulsion 2 | . . . 2 Utility 2 | . . . 2 Weapon 2 | . . . 2 Highest Loss Streak 4 | . . . 4 To Critical Strikes . | . . . . Average Slot Usage (%) 79 | . 94 90 58 Engine 14 | . 14 17 11 Wheel 19 | . 28 22 11 Device 16 | . 8 17 20 Storage 11 | . 14 11 11 Energy Gun 16 | . 28 22 4 Naked Turns . | . . . . Heaviest Build 41 | 14 16 41 41 Greatest Support 32 | 32 32 32 32 Greatest Overweight (x) 7 | . . 1 7 Average Overweight (x) . | . . . 1 Largest Inventory Capacity 15 | 8 8 15 15 Average Capacity 10 | 6 8 9 15 Most Carried 6 | 4 3 6 5 Average Carried 3 | 1 2 3 5 Final Capacity 15 | 8 8 15 15 Final Carried 5 | 2 2 5 5 Class Distribution -------------------- 100% | Mutant Dominant Class ---------------- Mutant | -10/Materials Mutant | -9/Materials Mutant | -9/Mines Resources | -11 -10 -9 -9 ----------- Run | Yrd Mat Mat Min Matter Collected 310 | 234 23 53 . Remotely 40 | . . 40 . Salvage Created 211 | . 73 138 . Parts 16 | . 7 9 . Haulers Intercepted . | . . . . Recyclers Shooed . | . . . . Parts Field Recycled . | . . . . Retrieved Matter . | . . . . Parts Self-Destructed . | . . . . Prevented . | . . . . Kills | -11 -10 -9 -9 ------- Run | Yrd Mat Mat Min Combat Hostiles Destroyed 1 | . 1 . . Guns 1 | . 1 . . Classes Destroyed 5 | . 3 2 . Builder 1 | . 1 . . Recycler 1 | . . 1 . Operator 3 | . . 3 . Watcher 1 | . 1 . . Grunt 1 | . 1 . . Best Kill Streak 2 | . 2 1 . Combat Bots Only 1 | . 1 . . Max Kills in Single Turn 2 | . 2 1 . Gunslinging . | . . . . Exploded . | . . . . Melee . | . . . . Uniques/NPCs Destroyed . | . . . . Combat | -11 -10 -9 -9 -------- Run | Yrd Mat Mat Min Hostile Shots Fired 101 | . 10 2 89 Missed 31 | . 3 2 26 Damage Taken 943 | . 75 78 790 Core 430 | . 22 . 408 Absorbed by Shields . | . . . . Core Remaining (%) 95 | 100 91 . . Volleys Fired 23 | . 11 12 . Largest 2 | . 2 2 . Hottest 90 | . 90 90 . Shots Fired 43 | . 22 21 . Gun 43 | . 22 21 . Cannon . | . . . . Launcher . | . . . . Special . | . . . . Kinetic . | . . . . Thermal 20 | . 11 9 . Explosive . | . . . . Electromagnetic 23 | . 11 12 . Robot Hit Streak 9 | . 3 9 . Robot Miss Streak 3 | . 3 2 . Penetration Max . | . . . . Secondary Targets . | . . . . Shots Hit Robots 25 | . 10 15 . Core Hits 10 | . 4 6 . Critical Kills . | . . . . Critical Parts Destroyed . | . . . . Critical Strikes . | . . . . Melee Attacks . | . . . . Impact . | . . . . Slashing . | . . . . Piercing . | . . . . Sneak Attacks . | . . . . Combat Hostiles . | . . . . Follow-up Attacks . | . . . . Damage Inflicted 447 | . 147 295 5 Guns 352 | . 147 205 . Cannons . | . . . . Explosions 90 | . . 90 . Melee . | . . . . Ramming 5 | . . . 5 Kinetic . | . . . . Thermal 215 | . 39 176 . Explosive . | . . . . Electromagnetic 227 | . 108 119 . Impact . | . . . . Slashing . | . . . . Piercing . | . . . . Highest Corruption . | . . . . Average Corruption . | . . . . Corruption Purged . | . . . . Corruption Blocked . | . . . . Overload Shots . | . . . . Overflow Damage . | . . . . Projectiles . | . . . . Explosions . | . . . . Melee . | . . . . Knockbacks . | . . . . Impact . | . . . . Kinetic . | . . . . Secondary . | . . . . Self-Inflicted Damage 78 | . . 78 . Shots 2 | . . 2 . Rammed 7 | . . . 7 Targets Rammed 7 | . . . 7 Kicked . | . . . . Crushed . | . . . . Highest Temperature 292 | . 292 264 . Average Temperature 108 | . 126 91 . Received Heat Transfer 42 | . 42 . . Siege Activations . | . . . . Robots Corrupted . | . . . . Combat Hostiles . | . . . . Parts Fried . | . . . . Impact Corruptions . | . . . . Robots Melted . | . . . . Combat Hostiles . | . . . . Parts Melted . | . . . . Heat Transferred 570 | . 111 459 . Parts Sabotaged . | . . . . Parts Stolen . | . . . . Parts Stripped . | . . . . Power Chain Reactions 2 | . . 2 . Alert | -11 -10 -9 -9 ------- Run | Yrd Mat Mat Min Peak Influence 106 | . 87 106 55 Initial 40 | . . 36 40 Average 40 | . 37 73 18 Maximum Alert Level . | . . . . Low Security (%) 100 | 100 100 100 100 Level 1 . | . . . . Level 2 . | . . . . Level 3 . | . . . . Level 4 . | . . . . Level 5 . | . . . . High Security . | . . . . Max Security . | . . . . Squads Dispatched 1 | . 1 . . Investigation . | . . . . Extermination . | . . . . Reinforcement 1 | . 1 . . Assault . | . . . . Garrison . | . . . . Intercept . | . . . . Searches Triggered . | . . . . Construction Impeded . | . . . . Haulers Reinforced . | . . . . Active Scanning Responses . | . . . . Cargo Convoy Interrupts . | . . . . Stealth | -11 -10 -9 -9 --------- Run | Yrd Mat Mat Min Distress Signals 1 | . 1 . . Communications Jammed . | . . . . Distress Signals . | . . . . Times Spotted 33 | . 6 8 19 Peak Tracking Total 6 | . 4 4 6 Tactical Retreats 3 | . . . 3 Traps | -11 -10 -9 -9 ------- Run | Yrd Mat Mat Min Traps Triggered . | . . . . Indirectly . | . . . . Trap Hack Attempts . | . . . . Triggered . | . . . . Disarmed . | . . . . Reprogrammed . | . . . . Reused . | . . . . Traps Extracted . | . . . . Installed . | . . . . Triggered . | . . . . Machines | -11 -10 -9 -9 ---------- Run | Yrd Mat Mat Min Machines Disabled . | . . . . Max in Single Turn . | . . . . Machines Repaired . | . . . . Machines Dismantled . | . . . . Machines Sabotaged . | . . . . Overloaded Fab Kills . | . . . . Hacking | -11 -10 -9 -9 --------- Run | Yrd Mat Mat Min Machines Accessed 4 | . 1 3 . Terminals 4 | . 1 3 . Fabricators . | . . . . Repair Stations . | . . . . Recycling Units . | . . . . Scanalyzers . | . . . . Garrison Access . | . . . . Total Hacks 9 | . 3 6 . Successful 3 | . 1 2 . Failed 6 | . 2 4 . Catastrophic . | . . . . Database Lockouts . | . . . . Manual . | . . . . Terminals 9 | . 3 6 . Fabricators . | . . . . Repair Stations . | . . . . Recycling Units . | . . . . Scanalyzers . | . . . . Garrison Access . | . . . . Terminal Hacks 3 | . 1 2 . Prototype ID Bank 2 | . 1 1 . Reinforcement Status 1 | . . 1 . Fabricator Hacks . | . . . . Repair Station Hacks . | . . . . Recycling Unit Hacks . | . . . . Scanalyzer . | . . . . Garrison Access Hacks . | . . . . Unauthorized Hacks . | . . . . Terminals . | . . . . Fabricators . | . . . . Repair Stations . | . . . . Recycling Units . | . . . . Scanalyzers . | . . . . Garrison Access . | . . . . Data Cores Recovered 3 | . . 3 . Used . | . . . . Hacking Detections 3 | . 1 2 . Full Trace Events . | . . . . Feedback Events . | . . . . Feedback Blocked . | . . . . Robot Schematics Acquired . | . . . . Robots Built . | . . . . Authchips . | . . . . Time . | . . . . Total Robot Build Rating . | . . . . Part Schematics Acquired . | . . . . Parts Built . | . . . . Authchips . | . . . . Time . | . . . . Total Part Build Rating . | . . . . Parts Repaired . | . . . . Time . | . . . . Parts Recycled . | . . . . Recycled Matter . | . . . . Retrieved Matter . | . . . . Retrieved Components . | . . . . Parts Scanalyzed . | . . . . Part Schematics Acquired . | . . . . Parts Damaged . | . . . . Bothacking | -11 -10 -9 -9 ------------ Run | Yrd Mat Mat Min Used RIF Installer . | . . . . Robots Hacked . | . . . . Non-combat . | . . . . Combat . | . . . . Robot Hacks Applied . | . . . . Relay Couplers Released . | . . . . Fabnet Peak Effective % . | . . . . Robots Rewired . | . . . . Allies Hacked . | . . . . Hacks Repelled . | . . . . Allies | -11 -10 -9 -9 -------- Run | Yrd Mat Mat Min Total Allies . | . . . . Largest Group . | . . . . Highest-Rated Group . | . . . . Highest-Rated Ally . | . . . . Total Orders . | . . . . Ally Attacks . | . . . . Total Damage . | . . . . Kills . | . . . . Allies Corrupted . | . . . . Allies Melted . | . . . . Intel | -11 -10 -9 -9 ------- Run | Yrd Mat Mat Min Robot Analysis Total . | . . . . Derelict Logs Recovered . | . . . . Drone Launches . | . . . . Drone Recoveries . | . . . . Exploration | -11 -10 -9 -9 ------------- Run | Yrd Mat Mat Min Turns Passed 556 | 58 107 207 184 Spaces Moved 405 | 49 73 157 126 Core 10 | 8 . . 2 Treads . | . . . . Legs . | . . . . Wheels 395 | 41 73 157 124 Hover . | . . . . Flight . | . . . . Fastest Speed 50 | 50 100 100 115 Average Speed 106 | 91 100 102 122 Slowest Speed 400 | 100 100 115 400 Overloaded Moves . | . . . . Propulsion Burnouts . | . . . . Robots Hopped . | . . . . Cave-ins Triggered . | . . . . Exploration Rate (%) 18 | 3 19 20 32 Regions Visited 3 Branch Regions 1 Pre-discovered Areas . | . . . . Known Exits Taken . | . . . . Unknown Exits Taken 3 | 1 1 1 . Scrap Searched 2 | . . . 2 Spaces Dug . | . . . . Terrain Destroyed 5 | . . 5 . Melee . | . . . . Projectile . | . . . . AOE 5 | . . 5 . Terrain Rammed . | . . . . Walls Destroyed . | . . . . Machines Disabled . | . . . . Actions | -11 -10 -9 -9 --------- Run | Yrd Mat Mat Min Total 467 | 62 85 181 139 Wait 6 | . . . 6 Move 402 | 48 72 156 126 Hop . | . . . . Pick Up 16 | 8 1 7 . Fast Attach . | . . . . Attach 9 | 6 1 2 . Detach . | . . . . Swap 2 | . . 2 . Drop 2 | . . 2 . Fire 23 | . 11 12 . Melee . | . . . . Ram 7 | . . . 7 Kick . | . . . . Crush . | . . . . Escape Stasis . | . . . . Rewire . | . . . . Trap . | . . . . Miscellaneous . | . . . . Route ------- -11/Scrapyard -10/Materials -9/Materials -9/Mines History --------- Turn | Location | Event 5 | -11/Scrapyard | Discovered new exit (range 16) 59 | -11/Scrapyard | Entered Materials 152 | -10/Materials | Discovered new exit (range 13) 166 | -10/Materials | Entered another Materials area 166 | -9/Materials | Evolved 2 slots: Power x1, Utility x1 299 | -9/Materials | Discovered new exit (range 14) 314 | -9/Materials | Build established: Mutant 373 | -9/Materials | Entered Mines 384 | -9/Mines | Assembled infested the area 418 | -9/Mines | Met a Derelict bent on vengeance 468 | -9/Mines | Lost 4 parts (1p1n2w) 514 | -9/Mines | Core integrity fell below 50% 546 | -9/Mines | Core integrity fell below 20% 557 | -9/Mines | Destroyed by S-10 Pest with Light Assault Rifle Last Messages --------------- The unstable cave ceiling collapses. K-01 Serf collects debris. EM Pulse Gun destroyed. Com. Wheel destroyed. K-01 Serf destroyed. The unstable cave ceiling collapses. Med. Laser destroyed. The unstable cave ceiling collapses. Imp. Ion Engine destroyed. K-01 Serf collects debris. Imp. Ion Engine destroyed. Com. Wheel destroyed. Slammed into S-10 Pest. Hpw. Tractor Beam destroyed. Slammed into S-10 Pest. S-10 Pest destroyed. Slammed into S-10 Pest. ECM Suite destroyed. R-06 Scavenger collects Lgt. Ion Engine. Slammed into S-10 Pest. Map ----- +----------------------------------------------------+ | | | | | | | | | | | | | | | | | | | | | | | | | ???????????????????????????????????????? | | ???????????????????????????????######??? | | ?????????????????????????????### ##?? | | ????????????????????????????## ##? | | ??????????????????????####### #? | | ??????????????????????# #? | | ??????????????????????# ###### #? | | ??????????????????????# #????### #? | | ??????????????????????# #??????## #? | | ??????????????????????# #???????## #? | | ??????? ####### ###??????# ##? | | ?????????# %s#?????## #?? | | ?????????# ########s####??# #?? | | ?????????????????????####@s=[#?## #?? | | ????????????????????## #### ### #?? | | ????????????????????# #?# ## ##?? | | ????????????????????# ### # ##??? | | ????????????????????# % ##???? | | ????????????????????# ####????? | | ????????????????????## #######???????? | | ?????????????????????## ##???????????? | | ?????????????????????## ##??????????? | | ??????????????????#### ####???????? | | ??????????????????# ##??????? | | ?????????????????# ## #??????? | | ?????????????????# #### ##?##??? | | ?????????????????## #???# ## ##?? | | ??????????????????# #????## #?? | | ?????????????????# ?????## #?? | | ???????????????? ?????# ##?? | | ??????????????? ????## #??? | | ?????????????? ????## ##??? | | ?????????????? ## ????# ###???? | | ????????????????## #??### ##?????? | | ?????????????????????### ##??????? | | ?????????????????# ?## #???????? | | ?????????????????# ## #???????? | | ????????????????## ##???????? | +----------------------------------------------------+ Best States ------------- Heat Dissipation 28 Energy Generation 19 Energy Capacity 430 Matter Stores 300 Matter Capacity 300 Sight Range 16 Terrain Scan Density 10 ECM Strength 1 Evasion (%) 40 Item Schematics ----------------- None Robot Schematics ------------------ None Fabricated ------------ Nothing Alien Tech Used ----------------- None Achievements -------------- None Challenges ------------ None Game ------ Seed ThunderSpliceLeg Manual? 0 Play Time 00:09:12 Cumulative 20.5 hours Start 2024.04.17 @ 01:07:46 End 2024.04.17 @ 01:26:21 Sessions 1 Manual Loads 0 Difficulty Rogue Special Mode None Game No. 49 Rogue 47 Adventurer 2 Explorer 0 Win Type - Total 0 Types 0/0/0/0/0/0/0/0/0 Lore% 20 Gallery% 27 Achievement% 20 Wizard Run 0 Options --------- Layout 1 ASCII 0 Keyboard 0 Movement Mouse Keybinds 0 Fullscreen 1 Font 16/SmallcapsGlow Map View 27x19 Zoom Use 99% Tactical HUD 0 Map Filters NONE Filters NONE Steam 1 RUN: 29208981-1457-4efb-a00b-47382e222152